bitfinex-derivatives/quotes_BTCF0:USTF0_20241019
["timestamp","ask_amount","ask_price","bid_price","bid_amount"]
[1729345644909,0.07009828,68205.0,68201.0,0.04399244]
[1729345646009,0.065975,68204.0,68201.0,0.04399244]
[1729345648613,0.065975,68204.0,68200.0,0.40479244]
[1729345648812,0.0002,68202.0,68200.0,0.40479244]
[1729345649008,0.0002,68202.0,68201.0,0.04399244]
[1729345649913,0.0002,68202.0,68200.0,0.04399244]
[1729345650212,0.0004,68202.0,68201.0,0.04399244]
[1729345651709,0.0004,68202.0,68201.0,0.10628198]
[1729345651909,0.066377,68202.0,68201.0,0.10628198]
[1729345654315,0.066377,68202.0,68201.0,0.19427479]
[1729345657323,0.066377,68202.0,68201.0,0.10628198]
[1729345660023,0.066377,68202.0,68201.0,0.23302333]
[1729345660230,0.066377,68202.0,68201.0,0.10628198]
[1729345660523,0.066377,68202.0,68201.0,0.23303621]
[1729345662226,0.066377,68202.0,68201.0,0.10628198]
[1729345663119,0.066377,68202.0,68201.0,0.23301207]
[1729345664915,0.066377,68202.0,68201.0,0.10628198]
[1729345665721,0.066377,68202.0,68201.0,0.23298894]
[1729345666429,0.066377,68202.0,68201.0,0.23303673]
[1729345666825,0.066377,68202.0,68201.0,0.04400385]
[1729345668531,0.066377,68202.0,68200.0,0.04400385]
[1729345668532,0.0004,68202.0,68200.0,0.04400385]
[1729345668724,0.066178,68201.0,68200.0,0.04400385]
[1729345669435,0.065979,68200.0,68199.0,0.3608]
[1729345669621,0.066179,68200.0,68199.0,0.3608]
[1729345674837,0.066179,68200.0,68199.0,0.59385577]
[1729345675832,0.066179,68200.0,68199.0,0.65983577]
[1729345675833,0.0002,68200.0,68199.0,0.65983577]
[1729345676245,0.0002,68200.0,68199.0,0.65972722]
[1729345677336,0.066179,68200.0,68199.0,0.65972722]
[1729345677526,0.066179,68200.0,68199.0,0.5330534]
[1729345680126,0.066179,68200.0,68199.0,0.1722534]
[1729345680331,0.066179,68200.0,68199.0,0.5330534]
[1729345680540,0.066179,68200.0,68199.0,0.1722534]
[1729345680733,0.066179,68200.0,68199.0,0.5330534]
[1729345681737,0.066179,68200.0,68199.0,0.42678]
[1729345684940,0.0002,68200.0,68199.0,0.42678]
[1729345689942,0.0002,68200.0,68199.0,0.65869041]
[1729345690251,0.066377,68202.0,68200.0,0.065979]
[1729345690541,0.066377,68202.0,68201.0,0.37837496]
[1729345690958,0.066377,68202.0,68201.0,0.23199596]
[1729345691138,0.066377,68202.0,68201.0,0.29797396]
[1729345692750,0.066377,68202.0,68201.0,0.54708964]
[1729345692953,0.066377,68202.0,68201.0,0.44445399]
[1729345693451,0.066377,68202.0,68201.0,0.54709099]
[1729345694951,0.066377,68202.0,68201.0,0.29797396]
[1729345696651,0.066377,68202.0,68201.0,0.44445885]
[1729345696849,0.066377,68202.0,68201.0,0.24513254]
[1729345697956,0.0004,68202.0,68201.0,0.07331677]
[1729345698157,0.065978,68201.0,68200.0,0.07331677]
[1729345698347,0.0002,68201.0,68199.0,0.43551677]
[1729345698548,0.065979,68200.0,68199.0,0.43411677]
[1729345698853,0.066179,68200.0,68199.0,0.54004536]
[1729345699262,0.066179,68200.0,68199.0,0.46672859]
[1729345699758,0.066179,68200.0,68199.0,0.54004881]
[1729345699949,0.066179,68200.0,68199.0,0.17924881]
[1729345700148,0.066179,68200.0,68199.0,0.54004881]
[1729345700456,0.066179,68200.0,68199.0,0.43412022]
[1729345700765,0.066179,68200.0,68199.0,0.3608]
[1729345703460,0.06598,68199.0,68198.0,0.07332022]
[1729345703663,0.06618,68199.0,68198.0,0.43412022]
[1729345704869,0.06618,68199.0,68198.0,0.59282562]
[1729345705963,0.0002,68199.0,68198.0,0.59282562]
[1729345706362,0.06618,68199.0,68198.0,0.23202562]
[1729345706563,0.06618,68199.0,68198.0,0.59282562]
[1729345708955,0.06618,68199.0,68198.0,0.46665295]
[1729345709558,0.06618,68199.0,68198.0,0.10585295]
[1729345709761,0.06618,68199.0,68198.0,0.46665295]
[1729345710077,0.06618,68199.0,68198.0,0.46626653]
[1729345711856,0.06618,68199.0,68197.0,0.09267802]
[1729345712058,0.0002,68198.0,68197.0,0.09267802]
[1729345712257,0.0002,68198.0,68197.0,0.45347802]
[1729345714873,0.0002,68198.0,68197.0,0.09267802]
[1729345715067,0.0002,68198.0,68197.0,0.45347802]
[1729345715262,0.0002,68198.0,68197.0,0.52678598]
[1729345715768,0.0002,68198.0,68197.0,0.55889021]
[1729345719360,0.0002,68198.0,68197.0,0.55882981]
[1729345719964,0.0002,68200.0,68197.0,0.76425501]
[1729345720165,0.0002,68200.0,68199.0,0.16861524]
[1729345720474,0.0002,68200.0,68199.0,0.54538551]
[1729345720969,0.0002,68200.0,68199.0,0.90618551]
[1729345721366,0.0002,68200.0,68199.0,0.39956953]
[1729345721762,0.0002,68200.0,68199.0,0.76036953]
[1729345722374,0.0002,68200.0,68199.0,0.65773429]
[1729345722676,0.0002,68200.0,68199.0,0.76036953]
[1729345722866,0.0002,68200.0,68199.0,0.65773429]
[1729345723067,0.0002,68200.0,68199.0,0.76036953]
[1729345723269,0.0002,68200.0,68199.0,0.39956953]
[1729345723570,0.0002,68200.0,68199.0,0.65773429]
[1729345724572,0.0002,68200.0,68199.0,0.8029819]
[1729345724766,0.0002,68200.0,68199.0,0.90568243]
[1729345727775,0.0002,68200.0,68199.0,0.80304719]
[1729345728563,0.0002,68200.0,68199.0,0.90567615]
[1729345728764,0.0002,68200.0,68199.0,0.80220367]
[1729345729172,0.0002,68200.0,68199.0,0.90483263]
[1729345729669,0.0002,68200.0,68199.0,0.80220367]
[1729345729873,0.0002,68200.0,68199.0,0.90483055]
[1729345733968,0.0002,68200.0,68199.0,0.75953572]
[1729345734170,0.0002,68200.0,68199.0,0.90482428]
[1729345734971,0.0002,68200.0,68199.0,0.53176762]
[1729345735373,0.0002,68200.0,68199.0,0.60507331]
[1729345735578,0.0002,68200.0,68199.0,0.60519092]
[1729345735773,0.0002,68200.0,68199.0,0.42678]
[1729345736477,0.066179,68200.0,68199.0,0.3608]
[1729345742079,0.066179,68200.0,68199.0,0.59131105]
[1729345744876,0.066179,68200.0,68199.0,0.23051105]
[1729345745169,0.01482907,68200.0,68199.0,0.23051105]
[1729345745369,0.065979,68200.0,68199.0,0.23051105]
[1729345746479,0.065979,68200.0,68199.0,0.22974707]
[1729345750188,0.06598,68199.0,68198.0,0.3608]
[1729345750484,0.06618,68199.0,68198.0,0.3608]
[1729345756190,0.09317533,68199.0,68198.0,0.3608]
[1729345756391,0.09317533,68199.0,68190.0,0.3624]
[1729345756392,0.065983,68195.0,68193.0,0.07328969]
[1729345756594,0.065985,68193.0,68190.0,0.3624]
[1729345756785,0.066185,68193.0,68190.0,0.3624]
[1729345756981,0.666185,68193.0,68192.0,0.10527428]
[1729345759400,0.066185,68193.0,68192.0,0.17849483]
[1729345760997,0.066185,68193.0,68192.0,0.07342055]
[1729345761490,0.066185,68193.0,68192.0,0.17867512]
[1729345761693,0.066185,68193.0,68192.0,0.0002]
[1729345771599,0.066185,68193.0,68192.0,0.04410747]
[1729345771996,0.066185,68193.0,68192.0,0.0002]
[1729345778491,0.066185,68193.0,68192.0,0.07342055]
[1729345779495,0.066185,68193.0,68192.0,0.17862604]
[1729345780606,0.066185,68193.0,68192.0,0.10540549]
[1729345784294,0.066185,68193.0,68192.0,0.1054854]
[1729345787007,0.066185,68193.0,68192.0,0.0002]
[1729345795106,0.066185,68193.0,68192.0,0.10558513]
[1729345796511,0.066185,68193.0,68192.0,0.10558443]
[1729345798717,0.066185,68193.0,68192.0,0.10557739]
[1729345802119,0.066185,68193.0,68192.0,0.0002]
[1729345810330,0.066185,68193.0,68192.0,0.10555813]
[1729345810925,0.066185,68193.0,68192.0,0.10535813]
[1729345811527,0.0002,68193.0,68192.0,0.10535705]
[1729345811733,0.066185,68193.0,68192.0,0.23093964]
[1729345811923,0.066185,68193.0,68192.0,0.10535705]
[1729345814034,0.066185,68193.0,68192.0,0.23092999]
[1729345814533,0.066185,68193.0,68192.0,0.230945]
[1729345814727,0.066185,68193.0,68192.0,0.10535705]
[1729345815730,0.065986,68192.0,68191.0,0.0321872]
[1729345815938,1.926786,68192.0,68191.0,0.1054255]
[1729345816233,0.065987,68191.0,68190.0,0.0002]
[1729345816530,0.065987,68191.0,68190.0,0.05885169]
[1729345816531,0.097987,68191.0,68190.0,0.05885169]
[1729345816732,1.137947,68191.0,68190.0,0.05885169]
[1729345817033,1.137947,68191.0,68190.0,0.0002]
[1729345819232,0.697987,68191.0,68190.0,0.0002]
[1729345819436,0.697987,68191.0,68190.0,0.04415377]
[1729345821032,0.72462636,68191.0,68190.0,0.04415377]
[1729345824222,0.72462636,68191.0,68178.0,0.3608]
[1729345824223,0.065993,68185.0,68184.0,0.05857189]
[1729345824523,0.065993,68185.0,68165.0,0.3608]
[1729345824524,0.066001,68177.0,68176.0,0.05857189]
[1729345824729,0.361,68177.0,68174.0,0.05857189]
[1729345825034,0.066203,68175.0,68174.0,0.05857189]
[1729345825232,0.066007,68171.0,68170.0,0.05857189]
[1729345825531,0.066008,68170.0,68169.0,0.05857189]
[1729345826036,0.066208,68170.0,68169.0,0.05857189]
[1729345826446,0.066208,68170.0,68168.0,0.05857189]
[1729345826447,0.066009,68169.0,68168.0,0.05857189]
[1729345826739,0.066209,68169.0,68168.0,0.05857189]
[1729345828638,0.06601,68168.0,68167.0,0.05857189]
[1729345828840,0.06621,68168.0,68167.0,0.05857189]
[1729345829340,0.0002,68168.0,68166.0,0.12397189]
[1729345829534,0.066211,68167.0,68166.0,0.12397189]
[1729345832141,0.066211,68167.0,68166.0,0.0654]
[1729345832330,0.066011,68167.0,68166.0,0.16996279]
[1729345833443,0.066011,68167.0,68166.0,0.0325]
[1729345834144,0.09203667,68167.0,68166.0,0.0325]
[1729345843568,0.45283667,68167.0,68166.0,0.0325]
[1729345852356,0.09203667,68167.0,68166.0,0.0325]
[1729345852557,0.45283667,68167.0,68166.0,0.0325]
[1729345854759,0.09203667,68167.0,68166.0,0.0325]
[1729345855059,0.45283667,68167.0,68166.0,0.0325]
[1729345855453,0.09203667,68167.0,68166.0,0.0325]
[1729345855664,0.45283667,68167.0,68166.0,0.0325]
[1729345856355,0.09203667,68167.0,68166.0,0.0325]
[1729345856561,0.48117316,68167.0,68166.0,0.0325]
[1729345858259,0.45283667,68167.0,68166.0,0.0325]
[1729345860859,0.09203667,68167.0,68166.0,0.0325]
[1729345861057,0.45283667,68167.0,68166.0,0.0325]
[1729345861366,0.48117318,68167.0,68166.0,0.0325]
[1729345862454,0.45283667,68167.0,68166.0,0.0325]
[1729345863653,0.09203667,68167.0,68166.0,0.0325]
[1729345863865,0.45283667,68167.0,68166.0,0.0325]
[1729345865456,0.09203667,68167.0,68166.0,0.0325]
[1729345865661,0.45283667,68167.0,68166.0,0.0325]
[1729345866073,0.09203667,68167.0,68166.0,0.0325]
[1729345866365,0.45283667,68167.0,68166.0,0.0325]
[1729345867064,0.09203667,68167.0,68166.0,0.0325]
[1729345867266,0.45283667,68167.0,68166.0,0.0325]
[1729345871768,0.09203667,68167.0,68166.0,0.0325]
[1729345877377,0.12037201,68167.0,68166.0,0.0325]
[1729345880869,0.09203667,68167.0,68166.0,0.0325]
[1729345881070,0.12037256,68167.0,68166.0,0.0325]
[1729345884276,0.15629518,68167.0,68166.0,0.0325]
[1729345885376,0.09203667,68167.0,68166.0,0.0325]
[1729345885974,0.09203667,68167.0,68166.0,0.09119748]
[1729345887484,0.09203667,68167.0,68166.0,0.0325]
[1729345888979,0.09203667,68167.0,68166.0,0.09119748]
[1729345890785,0.09203667,68167.0,68166.0,0.0325]
[1729345890974,0.09203667,68167.0,68166.0,0.09119748]
[1729345891881,0.09203667,68167.0,68166.0,0.09120197]
[1729345892098,0.09203667,68167.0,68166.0,0.0325]
[1729345892286,0.09203667,68167.0,68166.0,0.09120259]
[1729345892484,0.12037237,68167.0,68166.0,0.0325]
[1729345895183,0.09203667,68167.0,68166.0,0.0325]
[1729345895488,0.12037255,68167.0,68166.0,0.0325]
[1729345899480,0.09203667,68167.0,68166.0,0.09120259]
[1729345907890,0.09203667,68167.0,68166.0,0.0325]
[1729345909185,0.09203667,68167.0,68166.0,0.09121353]
[1729345911794,0.09203667,68167.0,68166.0,0.0325]
[1729345912189,0.09203667,68167.0,68166.0,0.09121278]
[1729345912885,0.09203667,68167.0,68166.0,0.0325]
[1729345914588,0.12037235,68167.0,68166.0,0.0325]
[1729345916198,0.15629485,68167.0,68166.0,0.0325]
[1729345916396,0.15629485,68167.0,68151.0,0.3608]
[1729345916589,0.15629485,68167.0,68153.0,0.0322]
[1729345916590,0.066023,68154.0,68153.0,0.0322]
[1729345916790,0.066023,68154.0,68153.0,0.0644]
[1729345916988,0.09436311,68154.0,68153.0,0.0644]
[1729345919787,0.12021107,68154.0,68153.0,0.0644]
[1729345920687,0.1202112,68154.0,68153.0,0.0644]
[1729345922793,0.09187096,68154.0,68153.0,0.0644]
[1729345927396,0.09187096,68154.0,68153.0,0.12301695]
[1729345929699,0.09187096,68154.0,68153.0,0.0644]
[1729345941511,0.09187096,68154.0,68153.0,0.13747541]
[1729345942010,0.09187096,68154.0,68153.0,0.0644]
[1729345942307,0.09187096,68154.0,68153.0,0.13747541]
[1729345943205,0.09187096,68154.0,68153.0,0.24238805]
[1729345944211,0.09187096,68154.0,68153.0,0.16931264]
[1729345944913,0.09187096,68154.0,68153.0,0.0644]
[1729345945307,0.066023,68154.0,68153.0,0.0644]
[1729345945807,0.066021,68156.0,68153.0,0.10839634]
[1729345946008,0.838691,68167.0,68153.0,0.10839634]
[1729345946009,0.77192,68167.0,68155.0,0.3608]
[1729345946198,0.77192,68167.0,68161.0,0.0002]
[1729345946199,0.066015,68162.0,68161.0,0.0002]
[1729345947206,0.77272,68167.0,68161.0,0.0002]
[1729345947207,0.38865089,68167.0,68161.0,0.0002]
[1729345947412,0.3608,68167.0,68162.0,0.3608]
[1729345947604,0.426811,68167.0,68162.0,0.40479634]
[1729345947805,0.3608,68167.0,68162.0,0.3608]
[1729345948007,0.066014,68164.0,68162.0,0.3608]
[1729345948914,0.3608,68167.0,68162.0,0.3608]
[1729345948915,0.066014,68163.0,68162.0,0.3608]
[1729345960116,0.066014,68163.0,68162.0,0.41936854]
[1729345960616,0.066014,68163.0,68162.0,0.3608]
[1729345961219,0.066014,68163.0,68162.0,0.41936854]
[1729345963324,0.066014,68163.0,68162.0,0.3608]
[1729345967024,0.066014,68163.0,68162.0,0.41936854]
[1729345967826,0.066014,68163.0,68162.0,0.3608]
[1729345974825,0.066014,68163.0,68162.0,0.46529344]
[1729345975219,0.066014,68163.0,68162.0,0.10449344]
[1729345977022,0.02607522,68165.0,68161.0,0.08806792]
[1729345977218,0.066215,68162.0,68161.0,0.08806792]
[1729345977428,0.066215,68162.0,68161.0,0.0004]
[1729345985331,0.066215,68162.0,68161.0,0.04442636]
[1729345987245,0.066215,68162.0,68161.0,0.0004]
[1729345990848,0.066215,68162.0,68161.0,0.10494783]
[1729345993836,0.066215,68162.0,68161.0,0.22955946]
[1729345994949,0.066215,68162.0,68161.0,0.10494783]
[1729345995536,0.066215,68162.0,68161.0,0.10498171]
[1729345997741,0.066215,68162.0,68161.0,0.0004]
[1729346000939,0.066215,68162.0,68161.0,0.04442965]
[1729346004248,0.066215,68162.0,68161.0,0.0004]
[1729346005751,0.066215,68162.0,68161.0,0.10500298]
[1729346011153,0.066215,68162.0,68161.0,0.22973613]
[1729346012757,0.066215,68162.0,68161.0,0.0004]
[1729346020851,0.066215,68162.0,68161.0,0.10505999]
[1729346022255,0.066215,68162.0,68161.0,0.22979673]
[1729346022651,0.066215,68162.0,68161.0,0.10505999]
[1729346023253,0.066215,68162.0,68161.0,0.22980034]
[1729346024065,0.066215,68162.0,68161.0,0.10505999]
[1729346024457,0.066215,68162.0,68161.0,0.10504631]
[1729346026862,0.066215,68162.0,68161.0,0.22978811]
[1729346027858,0.066215,68162.0,68161.0,0.10504631]
[1729346029357,0.066215,68162.0,68161.0,0.10504995]
[1729346030758,0.066215,68162.0,68161.0,0.19311931]
[1729346030960,0.066215,68162.0,68161.0,0.10504995]
[1729346031765,0.066215,68162.0,68161.0,0.19311908]
[1729346034067,0.066215,68162.0,68161.0,0.1931129]
[1729346035665,0.066215,68162.0,68161.0,0.10504377]
[1729346035875,0.09455053,68162.0,68161.0,0.0004]
[1729346041571,0.066215,68162.0,68161.0,0.0004]
[1729346043068,0.066215,68162.0,68161.0,0.19308874]
[1729346045481,0.066215,68162.0,68161.0,0.10501961]
[1729346047267,0.066215,68162.0,68161.0,0.10502905]
[1729346056890,0.066215,68162.0,68161.0,0.10503284]
[1729346057986,0.09455049,68162.0,68161.0,0.0004]
[1729346061688,0.09455059,68162.0,68161.0,0.0004]
[1729346066089,0.066215,68162.0,68161.0,0.10489376]
[1729346068594,0.066215,68162.0,68161.0,0.10449376]
[1729346071389,0.066215,68162.0,68161.0,0.22902783]
[1729346071891,0.066215,68162.0,68161.0,0.10449376]
[1729346072202,0.066215,68162.0,68161.0,0.22904581]
[1729346072891,0.066215,68162.0,68161.0,0.22904495]
[1729346073094,0.066017,68160.0,68159.0,0.3624]
[1729346073297,0.066217,68160.0,68159.0,0.361]
[1729346081094,0.066217,68160.0,68159.0,0.59004152]
[1729346088008,0.066217,68160.0,68159.0,0.361]
[1729346089311,0.066217,68160.0,68159.0,0.0002]
[1729346089512,0.09455425,68160.0,68159.0,0.0002]
[1729346090511,0.12147767,68160.0,68159.0,0.0002]
[1729346096106,0.09314042,68160.0,68159.0,0.0002]
[1729346097320,0.09314042,68160.0,68159.0,0.05881315]
[1729346098417,0.09314042,68160.0,68159.0,0.05861315]
[1729346103123,0.09314042,68160.0,68159.0,0.04395049]
[1729346105831,0.066018,68159.0,68158.0,0.04395049]
[1729346106020,0.066218,68159.0,68158.0,0.04395049]
[1729346109724,0.066218,68159.0,68154.0,0.05861315]
[1729346109725,0.066019,68158.0,68154.0,0.05861315]
[1729346109931,0.066022,68155.0,68154.0,0.05861315]
[1729346110133,0.066222,68155.0,68154.0,0.05861315]
[1729346111024,0.0002,68155.0,68149.0,0.28810685]
[1729346111225,0.066225,68152.0,68149.0,0.28810685]
[1729346115623,0.09290125,68152.0,68149.0,0.28810685]
[1729346118334,0.09290125,68152.0,68151.0,0.43419516]
[1729346119233,0.09290125,68152.0,68151.0,0.46578912]
[1729346121136,0.066225,68152.0,68151.0,0.46578912]
[1729346122849,0.066225,68152.0,68151.0,0.46580772]
[1729346126346,0.09456516,68152.0,68151.0,0.3608]
[1729346127042,0.09456516,68152.0,68151.0,0.38700847]
[1729346128637,0.09456516,68152.0,68151.0,0.3608]
[1729346133243,0.066225,68152.0,68151.0,0.53924488]
[1729346134744,0.066225,68152.0,68151.0,0.17844488]
[1729346136149,0.066225,68152.0,68151.0,0.10505305]
[1729346137351,0.066225,68152.0,68151.0,0.10506214]
[1729346148157,0.066225,68152.0,68150.0,0.07484385]
[1729346148158,0.0002,68152.0,68150.0,0.07484385]
[1729346148357,0.066226,68151.0,68150.0,0.07484385]
[1729346151061,0.066226,68151.0,68150.0,0.0308]
[1729346151562,0.066226,68151.0,68150.0,0.07484374]
[1729346152556,0.066226,68151.0,68150.0,0.0308]
[1729346153257,0.066027,68150.0,68149.0,0.3608]
[1729346153452,0.066227,68150.0,68149.0,0.3608]
[1729346156274,0.066227,68150.0,68149.0,0.46588775]
[1729346156461,0.066227,68150.0,68149.0,0.59114832]
[1729346158258,0.066227,68150.0,68149.0,0.46588775]
[1729346160266,0.066227,68150.0,68149.0,0.55397473]
[1729346160869,0.066227,68150.0,68149.0,0.5539723]
[1729346163166,0.066227,68150.0,68149.0,0.3608]
[1729346164467,0.0002,68150.0,68147.0,0.09297581]
[1729346164667,0.066229,68148.0,68147.0,0.09297581]
[1729346164865,0.066229,68148.0,68147.0,0.45377581]
[1729346166962,0.066229,68148.0,68147.0,0.51250026]
[1729346171161,0.066229,68148.0,68147.0,0.68410995]
[1729346174575,0.066229,68148.0,68147.0,0.68415846]
[1729346178173,0.066229,68148.0,68147.0,0.45377581]
[1729346180072,0.066229,68148.0,68147.0,0.51250306]
[1729346185181,0.066229,68148.0,68147.0,0.5588964]
[1729346185386,0.066229,68148.0,68147.0,0.68419612]
[1729346185586,0.0002,68151.0,68147.0,0.61816612]
[1729346185888,0.066028,68150.0,68149.0,0.066027]
[1729346186091,0.066028,68150.0,68149.0,0.29644731]
[1729346190487,0.066028,68150.0,68149.0,0.17114759]
[1729346193187,0.066028,68150.0,68149.0,0.12471748]
[1729346194292,0.066028,68150.0,68149.0,0.066027]
[1729346194692,0.066028,68150.0,68149.0,0.426827]
[1729346200399,0.066028,68150.0,68149.0,0.61985122]
[1729346202590,0.066028,68150.0,68149.0,0.53181549]
[1729346202991,0.066028,68150.0,68149.0,0.61985295]
[1729346203301,0.066028,68150.0,68149.0,0.53181549]
[1729346203599,0.066028,68150.0,68149.0,0.61985444]
[1729346204192,0.066028,68150.0,68149.0,0.53181549]
[1729346204797,0.066028,68150.0,68149.0,0.46578849]
[1729346204997,0.066028,68150.0,68149.0,0.55382887]
[1729346206296,0.0002,68152.0,68150.0,0.066027]
[1729346206602,0.066025,68153.0,68152.0,0.066024]
[1729346206800,0.066025,68153.0,68152.0,0.25905192]
[1729346206994,0.066025,68153.0,68152.0,0.17101249]
[1729346207993,0.066025,68153.0,68152.0,0.17097521]
[1729346208303,0.066025,68153.0,68152.0,0.29607179]
[1729346208697,0.066025,68153.0,68152.0,0.10495121]
[1729346211804,0.066025,68153.0,68152.0,0.23006158]
[1729346212200,0.066025,68153.0,68152.0,0.10495121]
[1729346212805,0.0002,68155.0,68152.0,0.10499446]
[1729346213104,0.066023,68154.0,68153.0,0.10499446]
[1729346213306,0.066023,68154.0,68153.0,0.19304278]
[1729346213694,0.066023,68154.0,68153.0,0.19304267]
[1729346213894,0.066023,68154.0,68153.0,0.10499446]
[1729346215313,0.066025,68152.0,68151.0,0.066025]
[1729346215612,0.066225,68152.0,68151.0,0.066025]
[1729346216202,0.066026,68151.0,68150.0,0.05870314]
[1729346216607,0.066226,68151.0,68150.0,0.05870314]
[1729346217511,0.066226,68151.0,68150.0,0.41950314]
[1729346218603,0.066226,68151.0,68150.0,0.3608]
[1729346223409,0.066226,68151.0,68150.0,0.46583589]
[1729346224716,0.066226,68151.0,68150.0,0.59103295]
[1729346225307,0.066226,68151.0,68150.0,0.46583589]
[1729346230121,0.066226,68151.0,68150.0,0.53186289]
[1729346230328,0.066226,68151.0,68150.0,0.61992148]
[1729346230817,0.066226,68151.0,68150.0,0.53186289]
[1729346231017,0.066226,68151.0,68150.0,0.61991928]
[1729346231224,0.066226,68151.0,68150.0,0.61992127]
[1729346231526,0.066226,68151.0,68150.0,0.53186289]
[1729346231922,0.066226,68151.0,68150.0,0.17106289]
[1729346232321,0.066226,68151.0,68150.0,0.53186289]
[1729346232524,0.066226,68151.0,68150.0,0.46583589]
[1729346232728,0.097726,68151.0,68150.0,0.46583589]
[1729346233022,0.130226,68151.0,68150.0,0.46583589]
[1729346233221,0.130226,68151.0,68150.0,0.55389738]
[1729346233726,0.130226,68151.0,68150.0,0.46583589]
[1729346235323,0.130226,68151.0,68150.0,0.46580145]
[1729346238335,0.130226,68151.0,68150.0,0.3608]
[1729346245547,0.130226,68151.0,68150.0,0.46581508]
[1729346248841,0.130226,68151.0,68150.0,0.5538803]
[1729346249539,0.130226,68151.0,68150.0,0.5513803]
[1729346250254,0.130226,68151.0,68150.0,0.46331508]
[1729346251048,0.130226,68151.0,68150.0,0.5513803]
[1729346251442,0.130226,68151.0,68150.0,0.10501508]
[1729346253353,0.09254052,68151.0,68149.0,0.0002]
[1729346253549,0.09456752,68150.0,68149.0,0.0002]
[1729346256257,0.066227,68150.0,68149.0,0.0002]
[1729346260662,0.066227,68150.0,68149.0,0.19334022]
[1729346260956,0.066227,68150.0,68149.0,0.10528582]
[1729346268552,0.066227,68150.0,68149.0,0.04423068]
[1729346269060,0.066227,68150.0,68149.0,0.0002]
[1729346270262,0.066227,68150.0,68149.0,0.04423087]
[1729346270860,0.066227,68150.0,68149.0,0.0002]
[1729346275459,0.066227,68150.0,68149.0,0.23058842]
[1729346276466,0.066227,68150.0,68149.0,0.10530604]
[1729346278667,0.066227,68150.0,68149.0,0.10529961]
[1729346282562,0.066227,68150.0,68149.0,0.23040188]
[1729346283472,0.066227,68150.0,68149.0,0.0002]
[1729346290577,0.066227,68150.0,68149.0,0.10522138]
[1729346291668,0.066227,68150.0,68149.0,0.10521861]
[1729346291976,0.066227,68150.0,68149.0,0.230383]
[1729346293371,0.066227,68150.0,68149.0,0.591183]
[1729346294564,0.066227,68150.0,68149.0,0.230383]
[1729346294774,0.066227,68150.0,68149.0,0.591183]
[1729346296682,0.066227,68150.0,68149.0,0.59117603]
[1729346298684,0.066227,68150.0,68149.0,0.46600915]
[1729346299275,0.066227,68150.0,68149.0,0.10520915]
[1729346300178,0.066227,68150.0,68149.0,0.19328623]
[1729346300985,0.066227,68150.0,68149.0,0.55408623]
[1729346302387,0.066227,68150.0,68149.0,0.19328623]
[1729346302690,0.066227,68150.0,68149.0,0.10520915]
[1729346302980,0.066227,68150.0,68149.0,0.19328951]
[1729346303679,0.066227,68150.0,68149.0,0.10520915]
[1729346303981,0.066227,68150.0,68149.0,0.19328956]
[1729346305681,0.066227,68150.0,68149.0,0.0002]
[1729346305981,0.09456677,68150.0,68149.0,0.0002]
[1729346306187,0.09456687,68150.0,68149.0,0.0002]
[1729346306381,0.066227,68150.0,68149.0,0.0002]
[1729346306778,0.09456677,68150.0,68149.0,0.0002]
[1729346306975,0.066227,68150.0,68149.0,0.0002]
[1729346308280,0.066227,68150.0,68149.0,0.361]
[1729346308484,0.09456673,68150.0,68149.0,0.361]
[1729346309389,0.09456673,68150.0,68149.0,0.0002]
[1729346311092,0.09456699,68150.0,68149.0,0.0002]
[1729346313692,0.066227,68150.0,68149.0,0.19327743]
[1729346315896,0.066227,68150.0,68149.0,0.19327574]
[1729346317195,0.066227,68150.0,68149.0,0.10519533]
[1729346320596,0.066227,68150.0,68149.0,0.10520304]
[1729346328591,0.066227,68150.0,68149.0,0.0002]
[1729346333502,0.066028,68149.0,68148.0,0.426828]
[1729346333707,0.066228,68149.0,68148.0,0.428228]
[1729346333904,0.066228,68149.0,68148.0,0.426828]
[1729346334398,0.066228,68149.0,68148.0,0.066028]
[1729346334596,0.066228,68149.0,68148.0,0.426828]
[1729346334795,0.066228,68149.0,68148.0,0.066028]
[1729346335000,0.066228,68149.0,68148.0,0.426828]
[1729346335303,0.066228,68149.0,68148.0,0.066028]
[1729346335495,0.066228,68149.0,68148.0,0.426828]
[1729346335800,0.066228,68149.0,68148.0,0.5317886]
[1729346335988,0.066228,68149.0,68148.0,0.65689931]
[1729346336193,0.066228,68149.0,68148.0,0.5317886]
[1729346336590,0.066228,68149.0,68148.0,0.65691204]
[1729346336790,0.066228,68149.0,68148.0,0.29611204]
[1729346336994,0.066228,68149.0,68148.0,0.65691204]
[1729346337295,0.066228,68149.0,68148.0,0.5317886]
[1729346338502,0.066228,68149.0,68148.0,0.29609456]
[1729346338694,0.066228,68149.0,68148.0,0.65689456]
[1729346339099,0.066228,68149.0,68148.0,0.5317886]
[1729346339401,0.066228,68149.0,68148.0,0.1709886]
[1729346339597,0.066228,68149.0,68148.0,0.5317886]
[1729346340805,0.066228,68149.0,68148.0,0.1709886]
[1729346341002,0.066228,68149.0,68148.0,0.5317886]
[1729346341506,0.066228,68149.0,68148.0,0.65688459]
[1729346341701,0.066228,68149.0,68148.0,0.5317886]
[1729346342100,0.066228,68149.0,68148.0,0.65689159]
[1729346343310,0.066228,68149.0,68148.0,0.066028]
[1729346343490,0.066228,68149.0,68148.0,0.29609685]
[1729346343806,0.066228,68149.0,68148.0,0.426828]
[1729346345605,0.066228,68149.0,68148.0,0.066028]
[1729346345805,0.066228,68149.0,68148.0,0.426828]
[1729346346911,0.066228,68149.0,68148.0,0.066028]
[1729346347101,0.066228,68149.0,68148.0,0.426828]
[1729346350304,0.066228,68149.0,68148.0,0.066028]
[1729346350712,0.066228,68149.0,68148.0,0.65689674]
[1729346350909,0.066228,68149.0,68148.0,0.29609674]
[1729346351113,0.066228,68149.0,68148.0,0.65689674]
[1729346351512,0.066228,68149.0,68148.0,0.29609674]
[1729346351718,0.066228,68149.0,68148.0,0.59086874]
[1729346353011,0.066228,68149.0,68148.0,0.3608]
[1729346353219,0.066228,68149.0,68148.0,0.59082233]
[1729346355305,0.066228,68149.0,68148.0,0.23002233]
[1729346355515,0.066228,68149.0,68148.0,0.59082233]